Cogmind - Beta 14 @@@ ROGUE MODE // 2025.03.10 @ 23:03:39 Player: moonlol Result: Self-destructed Performance ------------- Evolutions (3) 1500 Regions Visited (6) 1200 Robots Destroyed (37) 185 Value Destroyed (1029) 1029 Prototype IDs (25) 500 Alien Tech Used (0) 0 Bonus (141) 141 TOTAL SCORE: 4555 Bonus ------- High Alert Combat Kills 36 Follower Combat Kills 105 Cogmind --------- Core Integrity 700/700 Matter 152/300 Energy 200/200 System Corruption 0% Temperature Cool (0) Movement Treading (160) Location -7/Factory Parts ------- > --- POWER (2) -------- Light Deuterium Engine Light Nuclear Core > --- PROPULSION (4) --- Medium Treads Medium Treads Medium Treads Medium Treads > --- UTILITY (4) ------ Improved Heat Sink High-capacity Storage Unit Light Armor Plating Reactive Plating > --- WEAPON (3) ------- Particle Gun (fused) Heavy Assault Rifle Heavy Assault Rifle > --- INVENTORY (20) --- Improved Titanium Leg Improved Titanium Leg Improved Titanium Leg Large Storage Unit Transport Network Coupler Core Shielding Shield Generator System Shield Component Analysis Suite Heavy EM Shotgun Light Assault Rifle Makeshift Shrapnel Gun AWS/Gauss Improved Datajack Mining Laser Flail Proton Bomb Trap Peak State ------------ > --- POWER ------------ Light Deuterium Engine Light Nuclear Core > --- PROPULSION ------- Medium Treads Medium Treads Medium Treads Medium Treads > --- UTILITY ---------- Improved Heat Sink High-capacity Storage Unit Light Armor Plating Reactive Plating > --- WEAPON ----------- Particle Gun Heavy Assault Rifle Heavy Assault Rifle > --- INVENTORY -------- Improved Titanium Leg Improved Titanium Leg Improved Titanium Leg Large Storage Unit Transport Network Coupler Core Shielding Shield Generator System Shield Component Analysis Suite Heavy EM Shotgun Light Assault Rifle Makeshift Shrapnel Gun AWS/Gauss Improved Datajack Mining Laser Flail Proton Bomb Trap [Rating: 41] Favorites ----------- Power Ion Engine Engine Ion Engine Power Core Light Nuclear Core Propulsion Aluminum Leg Treads Medium Treads Leg Aluminum Leg Wheel Armored Wheel Utility Seismic Detector Device Seismic Detector Storage Large Storage Unit Processor Advanced Visual Processing Unit Protection Reactive Plating Weapon Assault Rifle Energy Gun Medium Laser Energy Cannon EM Pulse Cannon Ballistic Gun Assault Rifle Special Melee Weapon Improved Datajack Build | -11 -10 -10 -10 -9 -8 -7 ------- Run | Yrd Mat Min Exi Min Mat Fac Slots Evolved 6 | . . . . . 4 2 Power 1 | . . . . . . 1 Propulsion 2 | . . . . . 1 1 Utility 2 | . . . . . 2 . Weapon 1 | . . . . . 1 . Parts Attached 53 | 8 2 1 . . 40 2 Power 7 | 2 . . . . 4 1 Engine 5 | 2 . . . . 2 1 Core 2 | . . . . . 2 . Reactor . | . . . . . . . Propulsion 16 | 2 . . . . 13 1 Treads 7 | . . . . . 6 1 Leg 6 | 2 . . . . 4 . Wheel 3 | . . . . . 3 . Hover . | . . . . . . . Flight . | . . . . . . . Utility 15 | 2 2 1 . . 10 . Device 7 | 1 1 . . . 5 . Storage 4 | 1 1 1 . . 1 . Processor 1 | . . . . . 1 . Hackware . | . . . . . . . Protection 3 | . . . . . 3 . Artifact . | . . . . . . . Weapon 15 | 2 . . . . 13 . Energy Gun 4 | 1 . . . . 3 . Energy Cannon 3 | . . . . . 3 . Ballistic Gun 7 | 1 . . . . 6 . Ballistic Cannon . | . . . . . . . Launcher . | . . . . . . . Special Weapon . | . . . . . . . Impact Weapon . | . . . . . . . Slashing Weapon . | . . . . . . . Piercing Weapon . | . . . . . . . Special Melee Weapon 1 | . . . . . 1 . Unidentified Prototypes 1 | . . . . . 1 . Corrupted Parts 2 | . . . . . 2 . System Corruption 8 | . . . . . 8 . Parts Lost 10 | . . . . . 10 . Power 1 | . . . . . 1 . Propulsion 3 | . . . . . 3 . Utility 2 | . . . . . 2 . Weapon 4 | . . . . . 4 . Highest Loss Streak 7 | . . . . . 7 . To Critical Strikes . | . . . . . . . Average Slot Usage (%) 96 | . 100 100 100 100 93 100 Engine 9 | . 14 14 14 14 4 7 Core 1 | . . . . . 3 7 Treads 6 | . . . . . 12 30 Leg 19 | . 28 28 28 28 9 . Wheel 1 | . . . . . 2 . Device 12 | . 14 14 14 14 11 7 Storage 11 | . 14 14 14 14 9 7 Processor 1 | . . . . . 3 . Protection 5 | . . . . . 10 15 Energy Gun 12 | . 14 14 14 14 10 7 Ballistic Gun 13 | . 14 14 14 14 12 15 Peak Build Rating 41 | 7 8 9 12 12 37 41 Average Rating 17 | 4 7 8 10 12 27 40 On Entrance 11 | . 7 8 9 12 12 35 Naked Turns . | . . . . . . . Heaviest Build 73 | 15 20 30 30 30 69 73 Greatest Support 84 | 20 20 20 20 20 84 84 Greatest Overweight (x) 3 | 1 . 1 1 1 3 . Average Overweight (x) . | . . . 1 1 . . Largest Inventory Capacity 20 | 8 10 15 15 15 20 20 Average Capacity 14 | 7 8 10 15 15 16 20 Most Carried 20 | 8 9 10 15 15 20 19 Average Carried 13 | 3 7 9 11 15 16 18 Final Capacity 20 | 8 10 15 15 15 20 20 Final Carried 20 | 7 9 10 15 15 20 18 Class Distribution -------------------- 40% | Mutant 22% | Scavenger-Tank 19% | Commander-Mutant 14% | Tank Dominant Class ---------------- Mutant | -10/Materials Mutant | -10/Mines Commander-Mutant | -10/Exiles Commander-Mutant | -9/Mines Scavenger-Tank | -8/Materials Scavenger-Tank | -7/Factory Resources | -11 -10 -10 -10 -9 -8 -7 ----------- Run | Yrd Mat Min Exi Min Mat Fac Matter Collected 967 | 154 . 126 . 62 625 . Remotely . | . . . . . . . Salvage Created 1403 | 76 11 . 98 . 1218 . Parts 99 | 5 1 . 8 . 85 . Haulers Intercepted 1 | . . . . . 1 . Recyclers Shooed 1 | . . . . . 1 . Parts Field Recycled . | . . . . . . . Retrieved Matter . | . . . . . . . Parts Self-Destructed . | . . . . . . . Prevented . | . . . . . . . Kills | -11 -10 -10 -10 -9 -8 -7 ------- Run | Yrd Mat Min Exi Min Mat Fac Combat Hostiles Destroyed 31 | . 1 . . . 30 . Guns 28 | . 1 . . . 27 . Cannons 3 | . . . . . 3 . Classes Destroyed 8 | 2 1 . . . 5 . Tunneler 1 | 1 . . . . . . Hauler 1 | . . . . . 1 . Recycler 1 | 1 . . . . . . Watcher 3 | . . . . . 3 . Swarmer 14 | . 1 . . . 13 . Grunt 11 | . . . . . 11 . Duelist 1 | . . . . . 1 . Sentry 5 | . . . . . 5 . Best Kill Streak 6 | 2 1 . . . 6 . Combat Bots Only 4 | . 1 . . . 4 . Max Kills in Single Turn 1 | 1 1 . . . 1 . Gunslinging . | . . . . . . . Exploded . | . . . . . . . Melee . | . . . . . . . Uniques/NPCs Destroyed . | . . . . . . . Combat | -11 -10 -10 -10 -9 -8 -7 -------- Run | Yrd Mat Min Exi Min Mat Fac Hostile Shots Fired 229 | . 8 . . . 221 . Missed 50 | . . . . . 50 . Damage Taken 2273 | . 63 . . . 2210 . Core 186 | . 14 . . . 172 . Absorbed by Shields 94 | . . . . . 94 . Redirected to Shielding 17 | . . . . . 17 . Ignored by Resistances 71 | . . . . . 71 . Regen/Repaired (Parts) 63 | . . . . . 63 . Core Remaining (%) 87 | 100 . . . 94 68 . Volleys Fired 101 | 4 2 . 7 . 88 . Largest 3 | 2 2 . 2 . 3 . Hottest 151 | 70 70 . 70 . 151 . Shots Fired 240 | 8 4 . 14 . 214 . Gun 229 | 8 4 . 14 . 203 . Cannon 11 | . . . . . 11 . Launcher . | . . . . . . . Special . | . . . . . . . Kinetic 117 | 4 2 . 7 . 104 . Thermal 84 | 4 2 . 7 . 71 . Explosive . | . . . . . . . Electromagnetic 39 | . . . . . 39 . Robot Hit Streak 12 | 2 2 . 11 . 12 . Robot Miss Streak 6 | 3 1 . 2 . 6 . Penetration Max . | . . . . . . . Secondary Targets 3 | . . . . . 3 . Max Gunslinging Chain 1 | . . . . . 1 . Shots Hit Robots 163 | 4 2 . 11 . 146 . Core Hits 75 | 3 1 1 4 . 66 . Critical Kills 1 | . . . . . 1 . Critical Parts Destroyed . | . . . . . . . Critical Strikes 5 | . . . . . 5 . Burn 4 | . . . . . 4 . Destroy 1 | . . . . . 1 . Melee Attacks 5 | . . . . . 5 . Impact . | . . . . . . . Slashing . | . . . . . . . Piercing . | . . . . . . . Sneak Attacks 5 | . . . . . 5 . Combat Hostiles . | . . . . . . . Follow-up Attacks . | . . . . . . . Damage Inflicted 2603 | 63 25 8 139 . 2368 . Guns 2315 | 63 25 . 139 . 2088 . Cannons 269 | . . . . . 269 . Explosions . | . . . . . . . Melee . | . . . . . . . Ramming 19 | . . 8 . . 11 . Kinetic 1147 | 39 . . 65 . 1043 . Thermal 794 | 24 25 . 74 . 671 . Explosive . | . . . . . . . Electromagnetic 643 | . . . . . 643 . Impact . | . . . . . . . Slashing . | . . . . . . . Piercing . | . . . . . . . Highest Corruption 8 | . . . . . 8 . Average Corruption 7 | . . . . . 7 . Corruption Purged . | . . . . . . . Corruption Blocked . | . . . . . . . Effects 29 | . . . . . 29 . Message Errors 6 | . . . . . 6 . Matter Fused 4 | . . . . . 4 . Heat Flow Errors 3 | . . . . . 3 . Energy Discharges 5 | . . . . . 5 . Parts Rejected 1 | . . . . . 1 . Parts Fused 1 | . . . . . 1 . Data Loss (minor) 3 | . . . . . 3 . Data Loss (major) 4 | . . . . . 4 . Weapon Failures 2 | . . . . . 2 . Overload Shots . | . . . . . . . Overflow Damage 7 | . . . . . 7 . Projectiles 7 | . . . . . 7 . Explosions . | . . . . . . . Melee . | . . . . . . . Knockbacks . | . . . . . . . Impact . | . . . . . . . Kinetic . | . . . . . . . Secondary . | . . . . . . . Self-Inflicted Damage . | . . . . . . . Shots . | . . . . . . . Rammed . | . . . . . . . Targets Rammed 5 | . . 1 . . 4 . Kicked 5 | . . 1 . . 4 . Crushed . | . . . . . . . Highest Temperature 550 | 27 18 . 36 . 550 . Average Temperature 110 | 12 10 . 17 . 124 . Received Heat Transfer 1017 | . . . . . 1017 . Effects 13 | . . . . . 13 . Shutdowns 3 | . . . . . 3 . Energy Bleed 1 | . . . . . 1 . Interference 1 | . . . . . 1 . Matter Decay 1 | . . . . . 1 . Short Circuit 2 | . . . . . 2 . Damage (minor) 4 | . . . . . 4 . Damage (core) 1 | . . . . . 1 . Siege Activations . | . . . . . . . Robots Corrupted . | . . . . . . . Combat Hostiles . | . . . . . . . Parts Fried 4 | . . . . . 4 . Impact Corruptions . | . . . . . . . Robots Melted . | . . . . . . . Combat Hostiles . | . . . . . . . Parts Melted 3 | . . . . . 3 . Heat Transferred 2405 | 74 74 . 222 . 2035 . Parts Sabotaged . | . . . . . . . Parts Stolen . | . . . . . . . Parts Stripped . | . . . . . . . Power Chain Reactions . | . . . . . . . Alert | -11 -10 -10 -10 -9 -8 -7 ------- Run | Yrd Mat Min Exi Min Mat Fac Peak Influence 564 | 10 80 31 . . 564 186 Initial 186 | . 6 31 . . . 186 Average 204 | 2 37 14 . . 344 186 Maximum Alert Level 2 | . . . . . 2 . Low Security (%) 48 | 100 100 100 . 100 9 100 Level 1 35 | . . . . . 61 . Level 2 16 | . . . . . 29 . Level 3 . | . . . . . . . Level 4 . | . . . . . . . Level 5 . | . . . . . . . High Security . | . . . . . . . Max Security . | . . . . . . . Squads Dispatched 5 | . . . . . 5 . Investigation 2 | . . . . . 2 . Extermination . | . . . . . . . Reinforcement 3 | . . . . . 3 . Assault . | . . . . . . . Garrison . | . . . . . . . Intercept . | . . . . . . . Searches Triggered . | . . . . . . . Construction Impeded 1 | . . . . . 1 . Haulers Reinforced . | . . . . . . . Active Scanning Responses . | . . . . . . . Cargo Convoy Interrupts . | . . . . . . . Stealth | -11 -10 -10 -10 -9 -8 -7 --------- Run | Yrd Mat Min Exi Min Mat Fac Distress Signals 7 | . . . . . 7 . Communications Jammed . | . . . . . . . Distress Signals . | . . . . . . . Times Spotted 60 | . 4 . . . 56 . Peak Tracking Total 6 | . 3 . . . 6 . Tactical Retreats 8 | . 1 . . . 7 . Traps | -11 -10 -10 -10 -9 -8 -7 ------- Run | Yrd Mat Min Exi Min Mat Fac Traps Triggered . | . . . . . . . Indirectly . | . . . . . . . Trap Hack Attempts . | . . . . . . . Triggered . | . . . . . . . Disarmed . | . . . . . . . Reprogrammed . | . . . . . . . Reused . | . . . . . . . Traps Extracted . | . . . . . . . Installed . | . . . . . . . Triggered . | . . . . . . . Most Traps Carried 2 | . . 2 2 2 2 1 Machines | -11 -10 -10 -10 -9 -8 -7 ---------- Run | Yrd Mat Min Exi Min Mat Fac Machines Disabled 1 | . . . . . 1 . Max in Single Turn 1 | . . . . . 1 . Machines Repaired . | . . . . . . . Machines Dismantled . | . . . . . . . Machines Sabotaged . | . . . . . . . Overloaded Fab Kills . | . . . . . . . Hacking | -11 -10 -10 -10 -9 -8 -7 --------- Run | Yrd Mat Min Exi Min Mat Fac Machines Accessed 9 | . 1 1 1 . 6 . Terminals 5 | . 1 . . . 4 . Fabricators . | . . . . . . . Repair Stations 1 | . . . . . 1 . Recycling Units . | . . . . . . . Scanalyzers 1 | . . . . . 1 . Garrison Access . | . . . . . . . Total Hacks 33 | . 5 1 1 . 26 . Successful 19 | . 3 1 1 . 14 . Failed 14 | . 2 . . . 12 . Catastrophic 2 | . . . . . 2 . Database Lockouts . | . . . . . . . Manual 22 | . 5 . 2 . 15 . Terminals 20 | . 5 . . . 15 . Fabricators . | . . . . . . . Repair Stations 4 | . . . . . 4 . Recycling Units . | . . . . . . . Scanalyzers 7 | . . . . . 7 . Garrison Access . | . . . . . . . Terminal Hacks 7 | . 1 1 1 . 4 . Open Door 1 | . . 1 . . . . Branch Access Points 2 | . 1 . . . 1 . Terminal Index 1 | . . . . . 1 . Unreport Threat 2 | . . . . . 2 . Derelict Proto ID Bank 1 | . . . 1 . . . Fabricator Hacks . | . . . . . . . Repair Station Hacks 3 | . . . . . 3 . Scan Component 2 | . . . . . 2 . Repair 1 | . . . . . 1 . Recycling Unit Hacks . | . . . . . . . Scanalyzer 4 | . . . . . 4 . Insert Component 2 | . . . . . 2 . Analyze 2 | . . . . . 2 . Garrison Access Hacks . | . . . . . . . Unauthorized Hacks 5 | . 2 . . . 3 . Terminals 5 | . 2 . . . 3 . Track 1 | . 1 . . . . . Botnet 4 | . 1 . . . 3 . Fabricators . | . . . . . . . Repair Stations . | . . . . . . . Recycling Units . | . . . . . . . Scanalyzers . | . . . . . . . Garrison Access . | . . . . . . . Data Cores Recovered . | . . . . . . . Used . | . . . . . . . Hacking Detections 7 | . 1 . . . 6 . Full Trace Events 3 | . . . . . 3 . Feedback Events . | . . . . . . . Feedback Blocked . | . . . . . . . Robot Schematics Acquired . | . . . . . . . Robots Built . | . . . . . . . Authchips . | . . . . . . . Time . | . . . . . . . Total Robot Build Rating . | . . . . . . . Part Schematics Acquired 1 | . . . . . 1 . Parts Built . | . . . . . . . Authchips . | . . . . . . . Time . | . . . . . . . Total Part Build Rating . | . . . . . . . Parts Repaired 1 | . . . . . 1 . Time 38 | . . . . . 38 . Parts Recycled . | . . . . . . . Recycled Matter . | . . . . . . . Retrieved Matter . | . . . . . . . Retrieved Components . | . . . . . . . Parts Scanalyzed 1 | . . . . . 1 . Part Schematics Acquired 1 | . . . . . 1 . Parts Damaged . | . . . . . . . Bothacking | -11 -10 -10 -10 -9 -8 -7 ------------ Run | Yrd Mat Min Exi Min Mat Fac Used RIF Installer . | . . . . . . . Robots Hacked 2 | . . . . . 2 . Non-combat 2 | . . . . . 2 . Combat . | . . . . . . . Robot Hacks Applied 4 | . . . . . 4 . parse_system 3 | . . . . . 3 . no_distress 1 | . . . . . 1 . Relay Couplers Released . | . . . . . . . Fabnet Peak Effective % . | . . . . . . . Robots Rewired 2 | . . . 2 . . . Allies Hacked . | . . . . . . . Hacks Repelled . | . . . . . . . Allies | -11 -10 -10 -10 -9 -8 -7 -------- Run | Yrd Mat Min Exi Min Mat Fac Total Allies 7 | . . 5 2 . . . Largest Group 5 | . . 5 5 5 5 . Highest-Rated Group 84 | . . 84 84 69 69 . Highest-Rated Ally 31 | . . 31 31 21 21 . Total Orders . | . . . . . . . Ally Attacks 31 | . . . . . 31 . Total Damage 339 | . . . . . 339 . Kills 3 | . . . . . 3 . Allies Corrupted . | . . . . . . . Allies Melted . | . . . . . . . Intel | -11 -10 -10 -10 -9 -8 -7 ------- Run | Yrd Mat Min Exi Min Mat Fac Robot Analysis Total . | . . . . . . . Derelict Logs Recovered 1 | . . 1 . . . . Drone Launches . | . . . . . . . Drone Recoveries . | . . . . . . . Exploration | -11 -10 -10 -10 -9 -8 -7 ------------- Run | Yrd Mat Min Exi Min Mat Fac Turns Passed 3375 | 92 138 845 597 98 1593 12 Spaces Moved 1725 | 58 97 603 285 44 632 6 Core 14 | 14 . . . . . . Treads 313 | . . . . . 307 6 Legs 1230 | 44 97 603 285 44 157 . Wheels 168 | . . . . . 168 . Hover . | . . . . . . . Flight . | . . . . . . . Fastest Speed 50 | 50 120 120 190 190 105 160 Average Speed 148 | 105 120 121 190 190 160 160 Slowest Speed 320 | 120 120 190 190 190 320 160 Overloaded Moves . | . . . . . . . Propulsion Burnouts . | . . . . . . . Robots Hopped . | . . . . . . . Cave-ins Triggered . | . . . . . . . Exploration Rate (%) 37 | 4 20 92 70 21 52 1 Regions Visited 6 Branch Regions 3 Pre-discovered Areas . | . . . . . . . Known Exits Taken 1 | . 1 . . . . . Unknown Exits Taken 5 | 1 . 1 1 1 1 . Scrap Searched 2 | . . 1 . 1 . . Spaces Dug . | . . . . . . . Terrain Destroyed . | . . . . . . . Melee . | . . . . . . . Projectile . | . . . . . . . AOE . | . . . . . . . Terrain Rammed . | . . . . . . . Walls Destroyed . | . . . . . . . Machines Disabled . | . . . . . . . Actions | -11 -10 -10 -10 -9 -8 -7 --------- Run | Yrd Mat Min Exi Min Mat Fac Total 2341 | 77 117 720 328 59 1032 8 Wait 354 | . 7 105 4 16 222 . Move 1719 | 57 96 602 284 43 631 6 Hop . | . . . . . . . Pick Up 41 | 8 5 5 5 . 18 . Fast Attach 23 | 5 . . . . 18 . Attach 6 | 2 . . . . 2 2 Detach 3 | . . . . . 3 . Swap 24 | 1 2 1 . . 20 . Drop 33 | . 5 6 1 . 21 . Fire 101 | 4 2 . 7 . 88 . Melee 5 | . . . . . 5 . Ram . | . . . . . . . Kick 5 | . . 1 . . 4 . Crush . | . . . . . . . Escape Stasis . | . . . . . . . Rewire 27 | . . . 27 . . . Trap . | . . . . . . . Miscellaneous . | . . . . . . . Route ------- -11/Scrapyard -10/Materials (discovered 2 exits: *Min x2) -10/Mines -10/Exiles -9/Mines -8/Materials -7/Factory History --------- Turn | Location | Event 17 | -11/Scrapyard | Discovered new exit (range 14) 93 | -11/Scrapyard | Entered Materials 138 | -10/Materials | Identified exit to Mines 231 | -10/Materials | Entered Mines 311 | -10/Mines | Build established: Mutant 645 | -10/Mines | A weapon hastily lodged in a ceiling crevice suddenly fell to the ground 685 | -10/Mines | Found a hidden stash of uninstalled traps 757 | -10/Mines | Learned Materials trap positions 839 | -10/Mines | Found the Drone Emporium 858 | -10/Mines | Found Prototype Device 986 | -10/Mines | Assisted by bots powering up and referring to "LRC-V3" 1010 | -10/Mines | Deemed a non-threat by the Exiles lab entrance 1027 | -10/Mines | Discovered new exit (range 5) 1076 | -10/Mines | Entered Exiles 1076 | -10/Exiles | Found Exiles lab destroyed 1076 | -10/Exiles | Accompanied by 5 allies 1106 | -10/Exiles | Led the pair of lost Derelicts to a safe place 1351 | -10/Exiles | Opened EX-Vault 1360 | -10/Exiles | Found AWS/Gauss 1498 | -10/Exiles | Build established: Commander-Mutant 1654 | -10/Exiles | Discovered new exit (range 10) 1673 | -10/Exiles | Entered Mines 1673 | -9/Mines | Accompanied by 5 allies 1723 | -9/Mines | Discovered new exit (range 16) 1771 | -9/Mines | Entered Materials 1771 | -8/Materials | Accompanied by 5 allies 1771 | -8/Materials | Evolved 4 slots: Propulsion x1, Utility x2, Weapon x1 1772 | -8/Materials | Loaded intel: 8 trap records 1892 | -8/Materials | Lost 5 allies 2104 | -8/Materials | Identified Bomb Drone Bay 2275 | -8/Materials | Lost 7 parts (1p2n1u3w) 2947 | -8/Materials | Repaired EM Pulse Cannon 3160 | -8/Materials | Discovered new exit (range 4) 3327 | -8/Materials | Build established: Scavenger-Tank 3364 | -8/Materials | Entered Factory 3364 | -7/Factory | Evolved 2 slots: Power x1, Propulsion x1 3376 | -7/Factory | Self-destructed Last Messages --------------- 03202_ System corrupted: Heat flow error (+186). 03207_ Dropped Hvy. Assault Rifle. 03218_ Acquired Hvy. Assault Rifle. 03219_ G& WG#BXFQX&HCS 03225_ Connecting with Terminal... >>Access(Branch) No branch access points found. 03230_ Dropped Particle Gun. 03230_ Acquired Lgt. Assault Rifle. 03290_ Connecting with Terminal... >>Trojan(Botnet) Trojan loaded successfully. Testing... Terminal linked with 2 systems. Awaiting botnet instructions. 03293_ System corrupted: Particle Gun fused. 03348_ System corrupted: Component data lost. PARAMETERS=POWER+1,PROPULSION+1 LOCATION=UNKNOWN GOAL=ESCAPE Map ----- +----------------------------------------------------+ | ?????????????????????????????????????????? | | ?????????????????????????????????????????? | | ?????????????????????????????????????????? | | ?????????????????????????????????????????? | | ?????????????? ????????????????????????? | | ????????????? ??????????????????????? | | ????????????? ????????????????????? | | ????????????? ????????????????????? | | ????????????? ?????????????????????? | | ????????????? ?????????????????????? | | ?????????????# #?????????????????????? | | ?????????????# #?????????????????????? | | ?????????????# #?????????????????????? | | ?????????????# #?????????????????????? | | ?????????????# #?????????????????????? | | ?????????????# #?????????????????????? | | ???????????### ##########+???????????? | | ???????????# ???????????? | | ???????????# ??????????? | | ???????????# ??????????? | | ???????????# ??????????? | | ???????????# ??????????? | | ?????????######+#############????????????? | | ?????????# #??????????????????? | | ?????????# [ #??????????????????? | | ?????????# @ #??????????????????? | | ?????????# #??????????????????? | | ?????????+ #??????????????????? | | ?????????# ! #??????????????????? | | ?????????# ! ! #??????????????????? | | ?????????# #??????????????????? | | ?????????# = ""#??????????????????? | | ?????????# T"#??????????????????? | | ?????????# ""#??????????????????? | | ?????????# ???????????????????? | | ?????????######+######???????????????????? | | ?????????????????????????????????????????? | | ?????????????????????????????????????????? | | ?????????????????????????????????????????? | | ?????????????????????????????????????????? | | ?????????????????????????????????????????? | | ?????????????????????????????????????????? | | ?????????????????????????????????????????? | | ?????????????????????????????????????????? | | ?????????????????????????????????????????? | | ?????????????????????????????????????????? | | ?????????????????????????????????????????? | | ?????????????????????????????????????????? | | ?????????????????????????????????????????? | | ?????????????????????????????????????????? | +----------------------------------------------------+ Best States ------------- Heat Dissipation 48 Energy Generation 23 Energy Capacity 265 Matter Stores 300 Matter Capacity 300 Sight Range 20 Terrain Scan Density 10 Armor Coverage 300 Resistance: KI 20 Core Shielding 20 Evasion (%) 55 Recoil Reduction 3 Item Schematics ----------------- Hcp. Storage Unit | -8/Materials | Scanalyzed Robot Schematics ------------------ None Fabricated ------------ Nothing Alien Tech Used ----------------- None Achievements -------------- None Challenges ------------ None Game ------ Seed WeaponsBoreStatue Manual? 0 Play Time 00:20:47 Cumulative 99.7 hours Start 2025.03.10 @ 22:42:38 End 2025.03.10 @ 23:03:39 Sessions 1 Manual Loads 0 Difficulty Rogue Special Mode None Game No. 114 Rogue 66 Adventurer 47 Explorer 1 Win Type - Total 10 Types 7/0/0/1/0/0/2/0/0 Lore% 51 Gallery% 58 Achievement% 62 Wizard Run 0 Options --------- Layout 0 ASCII 0 Keyboard 1 Movement Numpad Keybinds 0 Fullscreen 2 Font 18/SmallcapsGlow Map View 76x50 Zoom Use 0% Tactical HUD 1 Map Filters NONE Filters NONE Steam 1 RUN: bc3a760d-286b-49c5-86cd-765a7f4c9cf3